[Event "Early-Titled-Tuesday-Blitz-September-05-2023"]
[Site "Chess.com"]
[Date "2023.09.05"]
[Round "6"]
[White "TioCridineno"]
[Black "Langua_Chess"]
[Result "0-1"]
[WhiteElo "2345"]
[BlackElo "2489"]
[TimeControl "180+1"]
[EndTime "9:02:24 PDT"]
[Termination "Langua_Chess won by resignation"]

1. e4 {[%clk 0:03:00.9]} 1... c6 {[%clk 0:02:56.4]} 2. d4 {[%clk 0:02:59.7]}
2... d5 {[%clk 0:02:55.4]} 3. e5 {[%clk 0:03:00.2]} 3... c5 {[%clk 0:02:55.6]}
4. dxc5 {[%clk 0:02:59]} 4... e6 {[%clk 0:02:53.8]} 5. Qg4 {[%clk 0:02:57.5]}
5... a6 {[%clk 0:02:09.6]} 6. Nf3 {[%clk 0:02:56.8]} 6... Nd7 {[%clk 0:02:09.7]}
7. b4 {[%clk 0:02:54.5]} 7... b6 {[%clk 0:01:48.3]} 8. c6 {[%clk 0:02:47.6]}
8... Nb8 {[%clk 0:01:48.4]} 9. b5 {[%clk 0:02:47.8]} 9... axb5 {[%clk
0:01:45.4]} 10. Bxb5 {[%clk 0:02:47.3]} 10... Qc7 {[%clk 0:01:45.7]} 11. O-O
{[%clk 0:02:45.6]} 11... Nxc6 {[%clk 0:01:45.9]} 12. Bf4 {[%clk 0:02:27.5]}
12... Bd7 {[%clk 0:01:46.1]} 13. a4 {[%clk 0:02:25.5]} 13... Nge7 {[%clk
0:01:44.5]} 14. Nbd2 {[%clk 0:02:24.1]} 14... Ng6 {[%clk 0:01:44.3]} 15. Bg3
{[%clk 0:02:23.4]} 15... h5 {[%clk 0:01:43.3]} 16. Qg5 {[%clk 0:02:19.5]} 16...
Be7 {[%clk 0:01:39.7]} 17. Qe3 {[%clk 0:02:18.6]} 17... h4 {[%clk 0:01:39]} 18.
Bf4 {[%clk 0:02:18.9]} 18... Bc5 {[%clk 0:01:39.7]} 19. Nd4 {[%clk 0:02:13.5]}
19... Bxd4 {[%clk 0:01:39]} 20. Bxc6 {[%clk 0:02:05.2]} 20... Bxe3 {[%clk
0:01:38.6]} 21. Bxd7+ {[%clk 0:02:05.2]} 21... Qxd7 {[%clk 0:01:38]} 22. fxe3
{[%clk 0:02:06.1]} 22... Rxa4 {[%clk 0:01:34.3]} 23. Rab1 {[%clk 0:02:04.6]}
23... Nxf4 {[%clk 0:01:23.7]} 24. exf4 {[%clk 0:02:03.9]} 24... Qc7 {[%clk
0:01:24.4]} 0-1

[Event "Early-Titled-Tuesday-Blitz-September-05-2023"]
[Site "Chess.com"]
[Date "2023.09.05"]
[Round "6"]
[White "ArtemDyachuk"]
[Black "Cheer_Down"]
[Result "1-0"]
[WhiteElo "2575"]
[BlackElo "2436"]
[TimeControl "180+1"]
[EndTime "9:02:34 PDT"]
[Termination "ArtemDyachuk won by resignation"]

1. d4 {[%clk 0:03:00.9]} 1... Nf6 {[%clk 0:02:52.1]} 2. c4 {[%clk 0:02:57.9]}
2... g6 {[%clk 0:02:52.3]} 3. Nc3 {[%clk 0:02:55.4]} 3... d5 {[%clk 0:02:52.5]}
4. cxd5 {[%clk 0:02:53]} 4... Nxd5 {[%clk 0:02:52.4]} 5. e4 {[%clk 0:02:53.6]}
5... Nxc3 {[%clk 0:02:52.4]} 6. bxc3 {[%clk 0:02:54.5]} 6... Bg7 {[%clk
0:02:52.6]} 7. Bb5+ {[%clk 0:02:53.4]} 7... c6 {[%clk 0:02:51.2]} 8. Ba4 {[%clk
0:02:53.4]} 8... O-O {[%clk 0:02:40.7]} 9. Nf3 {[%clk 0:02:47.3]} 9... Qa5
{[%clk 0:02:28.1]} 10. Bd2 {[%clk 0:02:45.5]} 10... Bg4 {[%clk 0:02:23.1]} 11.
Bb3 {[%clk 0:02:44]} 11... Nd7 {[%clk 0:02:00.4]} 12. h3 {[%clk 0:02:38.6]}
12... Bxf3 {[%clk 0:01:57.5]} 13. Qxf3 {[%clk 0:02:39.5]} 13... c5 {[%clk
0:01:51.2]} 14. e5 {[%clk 0:02:34.8]} 14... cxd4 {[%clk 0:01:36.3]} 15. cxd4
{[%clk 0:02:35.7]} 15... Qa6 {[%clk 0:01:36]} 16. h4 {[%clk 0:02:33.5]} 16...
Rad8 {[%clk 0:01:00.1]} 17. h5 {[%clk 0:02:30.9]} 17... Bxe5 {[%clk 0:01:00.3]}
18. hxg6 {[%clk 0:02:29.3]} 18... hxg6 {[%clk 0:00:55.6]} 19. Qh3 {[%clk
0:02:27.1]} 1-0

[Event "Early-Titled-Tuesday-Blitz-September-05-2023"]
[Site "Chess.com"]
[Date "2023.09.05"]
[Round "6"]
[White "Zhani-Z"]
[Black "miraitrunks"]
[Result "0-1"]
[WhiteElo "2260"]
[BlackElo "2029"]
[TimeControl "180+1"]
[EndTime "9:02:48 PDT"]
[Termination "miraitrunks won by resignation"]

1. g3 {[%clk 0:03:00.9]} 1... Nf6 {[%clk 0:02:59.3]} 2. Bg2 {[%clk 0:03:01.3]}
2... e6 {[%clk 0:02:59.4]} 3. d4 {[%clk 0:03:00.9]} 3... d5 {[%clk 0:02:58.9]}
4. c4 {[%clk 0:03:01.2]} 4... dxc4 {[%clk 0:02:58.6]} 5. Nc3 {[%clk 0:03:01.7]}
5... Nc6 {[%clk 0:02:55]} 6. Bxc6+ {[%clk 0:03:01.5]} 6... bxc6 {[%clk
0:02:54.9]} 7. Nf3 {[%clk 0:03:01.7]} 7... c5 {[%clk 0:02:54.6]} 8. dxc5 {[%clk
0:02:52.2]} 8... Qxd1+ {[%clk 0:02:53.2]} 9. Kxd1 {[%clk 0:02:48.5]} 9... Bxc5
{[%clk 0:02:53.3]} 10. Bf4 {[%clk 0:02:42.9]} 10... Bb7 {[%clk 0:02:34.7]} 11.
Bxc7 {[%clk 0:02:37.1]} 11... Bxf2 {[%clk 0:02:34.5]} 12. Kc2 {[%clk 0:02:30.5]}
12... O-O {[%clk 0:02:28.5]} 13. Rad1 {[%clk 0:02:28.2]} 13... Rac8 {[%clk
0:02:07.7]} 14. Be5 {[%clk 0:02:19]} 14... Ng4 {[%clk 0:01:35.5]} 15. Bf4 {[%clk
0:02:06.2]} 15... Be3 {[%clk 0:01:28.2]} 16. Rd7 {[%clk 0:02:03.8]} 16... Bc6
{[%clk 0:01:21]} 17. Re7 {[%clk 0:01:50.9]} 17... Bc5 {[%clk 0:01:17.2]} 0-1

[Event "Early-Titled-Tuesday-Blitz-September-05-2023"]
[Site "Chess.com"]
[Date "2023.09.05"]
[Round "6"]
[White "pouya21"]
[Black "lacafi"]
[Result "1-0"]
[WhiteElo "2807"]
[BlackElo "2225"]
[TimeControl "180+1"]
[EndTime "9:02:49 PDT"]
[Termination "pouya21 won by resignation"]

1. e4 {[%clk 0:03:00.9]} 1... c6 {[%clk 0:03:00]} 2. d4 {[%clk 0:02:58.5]} 2...
d5 {[%clk 0:03:00.9]} 3. exd5 {[%clk 0:02:59.2]} 3... cxd5 {[%clk 0:03:01.3]} 4.
Bd3 {[%clk 0:03:00.1]} 4... Nf6 {[%clk 0:03:01.5]} 5. c3 {[%clk 0:03:00]} 5...
Nc6 {[%clk 0:03:02.1]} 6. h3 {[%clk 0:02:59.7]} 6... e6 {[%clk 0:03:01.7]} 7.
Bf4 {[%clk 0:02:59]} 7... Be7 {[%clk 0:03:02.4]} 8. Nf3 {[%clk 0:02:58.9]} 8...
O-O {[%clk 0:03:03]} 9. O-O {[%clk 0:02:59.6]} 9... a6 {[%clk 0:03:03.2]} 10.
Nbd2 {[%clk 0:02:58.6]} 10... b5 {[%clk 0:03:03.4]} 11. b4 {[%clk 0:02:58.8]}
11... Bd6 {[%clk 0:02:51.2]} 12. Bxd6 {[%clk 0:02:57.9]} 12... Qxd6 {[%clk
0:02:51.2]} 13. Re1 {[%clk 0:02:55.3]} 13... Nd7 {[%clk 0:02:51.2]} 14. a4
{[%clk 0:02:50.2]} 14... bxa4 {[%clk 0:02:50]} 15. Qxa4 {[%clk 0:02:49.4]} 15...
Bb7 {[%clk 0:02:43.6]} 16. Qc2 {[%clk 0:02:47.3]} 16... h6 {[%clk 0:02:41.2]}
17. Nb3 {[%clk 0:02:47.3]} 17... e5 {[%clk 0:02:38.6]} 18. Nc5 {[%clk 0:02:40]}
18... Bc8 {[%clk 0:01:28.6]} 19. Nxd7 {[%clk 0:02:36.1]} 19... Bxd7 {[%clk
0:01:19.9]} 20. dxe5 {[%clk 0:02:34.8]} 20... Qc7 {[%clk 0:01:15.9]} 21. Qd2
{[%clk 0:02:31.8]} 21... a5 {[%clk 0:01:06.6]} 22. b5 {[%clk 0:02:30.3]} 22...
Na7 {[%clk 0:01:06.8]} 23. Nd4 {[%clk 0:02:28.1]} 23... Rfe8 {[%clk 0:01:04]}
24. f4 {[%clk 0:02:20.9]} 24... Qc5 {[%clk 0:01:03.5]} 25. Rxa5 {[%clk
0:02:12.7]} 25... Rec8 {[%clk 0:01:02.4]} 26. Rea1 {[%clk 0:02:08.4]} 1-0

[Event "Early-Titled-Tuesday-Blitz-September-05-2023"]
[Site "Chess.com"]
[Date "2023.09.05"]
[Round "6"]
[White "stasOR4ik"]
[Black "wild3000"]
[Result "0-1"]
[WhiteElo "2459"]
[BlackElo "2313"]
[TimeControl "180+1"]
[EndTime "9:03:00 PDT"]
[Termination "wild3000 won by resignation"]

1. e4 {[%clk 0:03:00.9]} 1... c5 {[%clk 0:02:58.1]} 2. Nc3 {[%clk 0:03:00.3]}
2... e6 {[%clk 0:02:53.8]} 3. f4 {[%clk 0:03:00.1]} 3... d5 {[%clk 0:02:53.2]}
4. exd5 {[%clk 0:03:00]} 4... exd5 {[%clk 0:02:53.3]} 5. Nf3 {[%clk 0:03:00.9]}
5... Nf6 {[%clk 0:02:53.2]} 6. g3 {[%clk 0:02:59.4]} 6... d4 {[%clk 0:02:53.4]}
7. Ne2 {[%clk 0:02:58.9]} 7... h5 {[%clk 0:02:50.8]} 8. Bg2 {[%clk 0:02:57.8]}
8... h4 {[%clk 0:02:49.9]} 9. Nxh4 {[%clk 0:02:56.8]} 9... Rxh4 {[%clk
0:02:49.7]} 10. gxh4 {[%clk 0:02:57.5]} 10... Bd6 {[%clk 0:02:44.8]} 11. d3
{[%clk 0:02:53.1]} 11... Bg4 {[%clk 0:02:44.2]} 12. O-O {[%clk 0:02:47.5]} 12...
Nc6 {[%clk 0:02:43.5]} 13. Qe1 {[%clk 0:02:45.3]} 13... Kf8 {[%clk 0:02:36.7]}
14. Ng3 {[%clk 0:02:37.8]} 14... Nb4 {[%clk 0:02:31.1]} 15. Rf2 {[%clk
0:02:26.7]} 15... Qd7 {[%clk 0:02:30.7]} 16. Ne4 {[%clk 0:02:19.5]} 16... Re8
{[%clk 0:02:21.9]} 17. a3 {[%clk 0:02:15.1]} 17... Nbd5 {[%clk 0:02:19.7]} 18.
Bd2 {[%clk 0:01:57.8]} 18... Nh5 {[%clk 0:02:04.2]} 19. Qf1 {[%clk 0:01:44.8]}
19... Ne3 {[%clk 0:01:59.6]} 20. Qc1 {[%clk 0:01:36.9]} 20... Bxf4 {[%clk
0:01:45.4]} 21. Rxf4 {[%clk 0:01:37.1]} 21... Nxf4 {[%clk 0:01:45.3]} 22. Bxe3
{[%clk 0:01:37.8]} 22... Ne2+ {[%clk 0:01:44.6]} 23. Kh1 {[%clk 0:01:38.4]}
23... Nxc1 {[%clk 0:01:43.6]} 24. Bxc1 {[%clk 0:01:39.3]} 24... f5 {[%clk
0:01:40.3]} 25. Bf4 {[%clk 0:01:27.6]} 25... fxe4 {[%clk 0:01:38.4]} 26. Bxe4
{[%clk 0:01:28.5]} 26... Rxe4 {[%clk 0:01:36.9]} 27. dxe4 {[%clk 0:01:28.6]}
27... Bf3+ {[%clk 0:01:36.9]} 28. Kg1 {[%clk 0:01:27.8]} 28... Qh3 {[%clk
0:01:36.5]} 0-1

[Event "Early-Titled-Tuesday-Blitz-September-05-2023"]
[Site "Chess.com"]
[Date "2023.09.05"]
[Round "6"]
[White "DawidCzerw"]
[Black "TregubovP"]
[Result "0-1"]
[WhiteElo "2511"]
[BlackElo "2636"]
[TimeControl "180+1"]
[EndTime "9:03:25 PDT"]
[Termination "TregubovP won by checkmate"]

1. e4 {[%clk 0:03:00.9]} 1... c5 {[%clk 0:02:59.3]} 2. Nf3 {[%clk 0:03:01.2]}
2... e6 {[%clk 0:02:59.8]} 3. d4 {[%clk 0:03:01.6]} 3... cxd4 {[%clk 0:03:00.1]}
4. Nxd4 {[%clk 0:03:02.5]} 4... Nc6 {[%clk 0:03:00.5]} 5. Nc3 {[%clk 0:03:03.1]}
5... Nf6 {[%clk 0:03:01]} 6. Nxc6 {[%clk 0:03:03.2]} 6... bxc6 {[%clk
0:03:00.4]} 7. e5 {[%clk 0:03:03.6]} 7... Nd5 {[%clk 0:03:01]} 8. Ne4 {[%clk
0:03:04.1]} 8... Bb7 {[%clk 0:02:59.7]} 9. Be2 {[%clk 0:02:45.5]} 9... c5 {[%clk
0:02:59.4]} 10. O-O {[%clk 0:02:39.7]} 10... Qc7 {[%clk 0:02:59.6]} 11. Nd6+
{[%clk 0:02:38.9]} 11... Bxd6 {[%clk 0:03:00.1]} 12. exd6 {[%clk 0:02:39.3]}
12... Qc6 {[%clk 0:03:00.7]} 13. Bf3 {[%clk 0:02:39.1]} 13... c4 {[%clk
0:03:00.8]} 14. Qd4 {[%clk 0:02:29.2]} 14... O-O {[%clk 0:02:58.8]} 15. b3
{[%clk 0:02:18]} 15... Rfc8 {[%clk 0:02:57.8]} 16. Bb2 {[%clk 0:01:43.6]} 16...
c3 {[%clk 0:02:50.2]} 17. Bxd5 {[%clk 0:01:43.2]} 17... Qxd5 {[%clk 0:02:50.2]}
18. Qxd5 {[%clk 0:01:43.3]} 18... Bxd5 {[%clk 0:02:50.4]} 19. Bc1 {[%clk
0:01:38.6]} 19... Be4 {[%clk 0:02:42.7]} 20. Be3 {[%clk 0:01:35.2]} 20... Bxc2
{[%clk 0:02:42.8]} 21. Rfc1 {[%clk 0:01:35]} 21... Bf5 {[%clk 0:02:33.3]} 22. b4
{[%clk 0:01:35.2]} 22... a6 {[%clk 0:02:24.7]} 23. Bc5 {[%clk 0:01:31.3]} 23...
c2 {[%clk 0:02:24.4]} 24. f3 {[%clk 0:01:31.8]} 24... h5 {[%clk 0:02:23.1]} 25.
a3 {[%clk 0:01:31.1]} 25... a5 {[%clk 0:02:19.8]} 26. Kf2 {[%clk 0:01:26.3]}
26... f6 {[%clk 0:02:14.7]} 27. Ke3 {[%clk 0:01:23.2]} 27... e5 {[%clk 0:02:15]}
28. Kd2 {[%clk 0:01:16.4]} 28... Kf7 {[%clk 0:02:14.7]} 29. Kc3 {[%clk
0:01:12.9]} 29... Ke6 {[%clk 0:02:13.9]} 30. Kc4 {[%clk 0:01:05.9]} 30... Ra6
{[%clk 0:02:12.4]} 31. Kb5 {[%clk 0:00:48.2]} 31... Bd3+ {[%clk 0:02:10.9]} 32.
Ka4 {[%clk 0:00:45]} 32... axb4+ {[%clk 0:02:11.2]} 33. Kxb4 {[%clk 0:00:45.1]}
33... Rac6 {[%clk 0:02:09.2]} 34. Bf2 {[%clk 0:00:38.2]} 34... Rb8+ {[%clk
0:02:08.6]} 35. Ka5 {[%clk 0:00:36.8]} 35... Ra6# {[%clk 0:02:08.7]} 0-1

[Event "Early-Titled-Tuesday-Blitz-September-05-2023"]
[Site "Chess.com"]
[Date "2023.09.05"]
[Round "6"]
[White "subham777"]
[Black "Vanina1989"]
[Result "0-1"]
[WhiteElo "2548"]
[BlackElo "2723"]
[TimeControl "180+1"]
[EndTime "9:03:30 PDT"]
[Termination "Vanina1989 won by resignation"]

1. e4 {[%clk 0:03:00.9]} 1... c6 {[%clk 0:02:58.3]} 2. c4 {[%clk 0:03:00.7]}
2... d5 {[%clk 0:02:58.3]} 3. cxd5 {[%clk 0:03:01.1]} 3... cxd5 {[%clk
0:02:58.7]} 4. exd5 {[%clk 0:03:02]} 4... Nf6 {[%clk 0:02:58.4]} 5. Nc3 {[%clk
0:03:01.9]} 5... g6 {[%clk 0:02:58.5]} 6. Nf3 {[%clk 0:03:02.2]} 6... Bg7 {[%clk
0:02:58.5]} 7. Bc4 {[%clk 0:03:00]} 7... O-O {[%clk 0:02:58]} 8. O-O {[%clk
0:02:59.9]} 8... a6 {[%clk 0:02:58.5]} 9. d4 {[%clk 0:02:58.4]} 9... b5 {[%clk
0:02:57.1]} 10. Bb3 {[%clk 0:02:59.1]} 10... Bb7 {[%clk 0:02:57.3]} 11. Re1
{[%clk 0:02:59.1]} 11... Nxd5 {[%clk 0:02:55.2]} 12. Nxd5 {[%clk 0:02:58.1]}
12... Bxd5 {[%clk 0:02:55.3]} 13. Bxd5 {[%clk 0:02:58.2]} 13... Qxd5 {[%clk
0:02:55.4]} 14. Rxe7 {[%clk 0:02:57.8]} 14... Nc6 {[%clk 0:02:55.6]} 15. Re1
{[%clk 0:02:57.2]} 15... Nxd4 {[%clk 0:02:50]} 16. Nxd4 {[%clk 0:02:56.5]} 16...
Qxd4 {[%clk 0:02:49.7]} 17. Qxd4 {[%clk 0:02:45.3]} 17... Bxd4 {[%clk
0:02:48.9]} 18. a4 {[%clk 0:02:25.9]} 18... Rfc8 {[%clk 0:02:43]} 19. axb5
{[%clk 0:02:18.4]} 19... axb5 {[%clk 0:02:42.6]} 20. Rxa8 {[%clk 0:02:13.5]}
20... Rxa8 {[%clk 0:02:42.3]} 21. g4 {[%clk 0:01:58.8]} 21... Ra1 {[%clk
0:02:24]} 22. Kf1 {[%clk 0:01:17]} 22... Rb1 {[%clk 0:02:21.6]} 23. b3 {[%clk
0:00:59.1]} 23... Bc3 {[%clk 0:02:13.7]} 24. Rd1 {[%clk 0:00:53.6]} 24... Bb2
{[%clk 0:02:10.7]} 25. Bxb2 {[%clk 0:00:44.6]} 25... Rxd1+ {[%clk 0:02:09.2]}
26. Ke2 {[%clk 0:00:43.1]} 26... Rb1 {[%clk 0:02:09.1]} 27. Be5 {[%clk
0:00:42.9]} 27... Rxb3 {[%clk 0:02:08.6]} 28. h4 {[%clk 0:00:42.7]} 28... Kf8
{[%clk 0:02:07.6]} 29. f4 {[%clk 0:00:36.4]} 29... Ke7 {[%clk 0:02:07.2]} 30.
Kd2 {[%clk 0:00:34.3]} 30... Ke6 {[%clk 0:02:06.6]} 31. Kc2 {[%clk 0:00:33.7]}
31... Rh3 {[%clk 0:02:06.5]} 0-1

[Event "Early-Titled-Tuesday-Blitz-September-05-2023"]
[Site "Chess.com"]
[Date "2023.09.05"]
[Round "6"]
[White "masterofpuppets2"]
[Black "expii"]
[Result "1-0"]
[WhiteElo "2464"]
[BlackElo "2253"]
[TimeControl "180+1"]
[EndTime "9:03:52 PDT"]
[Termination "masterofpuppets2 won by resignation"]

1. d4 {[%clk 0:03:00.9]} 1... Nf6 {[%clk 0:02:57.8]} 2. c4 {[%clk 0:03:01.1]}
2... d6 {[%clk 0:02:58.3]} 3. Nc3 {[%clk 0:03:00.9]} 3... g6 {[%clk 0:02:58.3]}
4. e4 {[%clk 0:03:01.1]} 4... Bg7 {[%clk 0:02:57.7]} 5. f3 {[%clk 0:03:01.6]}
5... O-O {[%clk 0:02:57]} 6. Be3 {[%clk 0:03:01.8]} 6... Nbd7 {[%clk 0:02:46.3]}
7. Bd3 {[%clk 0:03:00.5]} 7... c5 {[%clk 0:02:45.3]} 8. Nge2 {[%clk 0:03:00.4]}
8... b6 {[%clk 0:02:39.2]} 9. Qd2 {[%clk 0:02:59.3]} 9... e5 {[%clk 0:02:35.9]}
10. d5 {[%clk 0:02:50.7]} 10... Ne8 {[%clk 0:02:26.3]} 11. g4 {[%clk 0:02:49.7]}
11... f5 {[%clk 0:02:18.2]} 12. exf5 {[%clk 0:02:48.7]} 12... gxf5 {[%clk
0:02:09.3]} 13. Bxf5 {[%clk 0:02:44.4]} 13... Ndf6 {[%clk 0:02:08]} 14. Bc2
{[%clk 0:02:37.9]} 14... Nc7 {[%clk 0:01:51.2]} 15. h4 {[%clk 0:02:35.6]} 15...
b5 {[%clk 0:01:44.9]} 16. cxb5 {[%clk 0:02:32.9]} 16... Bb7 {[%clk 0:01:27.9]}
17. Bb3 {[%clk 0:02:32.5]} 17... Kh8 {[%clk 0:01:12.1]} 18. h5 {[%clk
0:02:31.9]} 18... Rf7 {[%clk 0:01:08.6]} 19. O-O-O {[%clk 0:02:27.4]} 19... Qd7
{[%clk 0:01:06.6]} 20. Bc4 {[%clk 0:02:21.4]} 20... a6 {[%clk 0:00:53.7]} 21. b6
{[%clk 0:02:21.2]} 21... Nb5 {[%clk 0:00:50.9]} 22. g5 {[%clk 0:02:11.1]} 22...
Nxc3 {[%clk 0:00:46]} 23. Nxc3 {[%clk 0:02:07.9]} 23... Ne8 {[%clk 0:00:43.7]}
24. Qe2 {[%clk 0:01:56.6]} 24... Rf5 {[%clk 0:00:10.4]} 25. Rdg1 {[%clk
0:01:50.9]} 1-0

[Event "Early-Titled-Tuesday-Blitz-September-05-2023"]
[Site "Chess.com"]
[Date "2023.09.05"]
[Round "6"]
[White "TrenerChos"]
[Black "IM_Tissir"]
[Result "1-0"]
[WhiteElo "2625"]
[BlackElo "2461"]
[TimeControl "180+1"]
[EndTime "9:03:54 PDT"]
[Termination "TrenerChos won by resignation"]

1. d4 {[%clk 0:03:00]} 1... Nf6 {[%clk 0:02:53.9]} 2. Nf3 {[%clk 0:02:59.7]}
2... g6 {[%clk 0:02:53.5]} 3. b3 {[%clk 0:03:00.6]} 3... Bg7 {[%clk 0:02:53.4]}
4. Bb2 {[%clk 0:03:01.5]} 4... O-O {[%clk 0:02:54]} 5. g3 {[%clk 0:03:02.4]}
5... a5 {[%clk 0:02:52.1]} 6. Bg2 {[%clk 0:03:03.3]} 6... a4 {[%clk 0:02:52.3]}
7. O-O {[%clk 0:03:03.8]} 7... d6 {[%clk 0:02:51.8]} 8. Nbd2 {[%clk 0:03:03]}
8... a3 {[%clk 0:02:51.5]} 9. Bc3 {[%clk 0:03:03]} 9... Nd5 {[%clk 0:02:49.1]}
10. Nb1 {[%clk 0:03:00]} 10... Nxc3 {[%clk 0:02:48.1]} 11. Nxc3 {[%clk 0:03:00]}
11... c5 {[%clk 0:02:49]} 12. Qd2 {[%clk 0:02:55.6]} 12... cxd4 {[%clk
0:02:43.4]} 13. Nxd4 {[%clk 0:02:56.5]} 13... Nc6 {[%clk 0:02:43.9]} 14. Nxc6
{[%clk 0:02:55.4]} 14... bxc6 {[%clk 0:02:44.8]} 15. Bxc6 {[%clk 0:02:55.9]}
15... Ra6 {[%clk 0:02:07.4]} 16. Bb5 {[%clk 0:02:45.6]} 16... Qa5 {[%clk
0:02:05.9]} 17. Bxa6 {[%clk 0:02:21.4]} 17... Bxc3 {[%clk 0:02:04.3]} 18. Qe3
{[%clk 0:02:21.4]} 18... Bxa6 {[%clk 0:01:55.9]} 19. Rad1 {[%clk 0:02:20.9]}
19... Qc7 {[%clk 0:01:47.8]} 20. h4 {[%clk 0:02:20.4]} 20... Rc8 {[%clk
0:01:42.2]} 21. h5 {[%clk 0:02:20.1]} 21... Kg7 {[%clk 0:01:35.5]} 22. Rd5
{[%clk 0:02:17.5]} 22... e5 {[%clk 0:01:31.7]} 23. h6+ {[%clk 0:02:08.3]} 23...
Kg8 {[%clk 0:01:31.5]} 24. Rfd1 {[%clk 0:02:08.1]} 24... Bb4 {[%clk 0:01:13.4]}
25. Qg5 {[%clk 0:02:03.3]} 25... Qd8 {[%clk 0:00:59.9]} 26. Qxe5 {[%clk
0:01:59.8]} 26... dxe5 {[%clk 0:00:50.6]} 27. Rxd8+ {[%clk 0:01:59.2]} 27...
Rxd8 {[%clk 0:00:51.5]} 28. Rxd8+ {[%clk 0:01:58.9]} 28... Bf8 {[%clk
0:00:52.4]} 29. c4 {[%clk 0:01:59.3]} 29... f5 {[%clk 0:00:45.5]} 30. c5 {[%clk
0:01:58.6]} 30... Kf7 {[%clk 0:00:45.6]} 31. c6 {[%clk 0:01:58.7]} 31... Be7
{[%clk 0:00:45.4]} 32. c7 {[%clk 0:01:58.7]} 1-0

[Event "Early-Titled-Tuesday-Blitz-September-05-2023"]
[Site "Chess.com"]
[Date "2023.09.05"]
[Round "6"]
[White "infinitegiantkiller"]
[Black "aakankshachess"]
[Result "0-1"]
[WhiteElo "2477"]
[BlackElo "2467"]
[TimeControl "180+1"]
[EndTime "9:03:57 PDT"]
[Termination "aakankshachess won by resignation"]

1. Nf3 {[%clk 0:03:00.9]} 1... Nf6 {[%clk 0:02:59.8]} 2. g3 {[%clk 0:03:01.3]}
2... b6 {[%clk 0:02:57.8]} 3. Bg2 {[%clk 0:03:02.2]} 3... Bb7 {[%clk 0:02:58.2]}
4. O-O {[%clk 0:02:55.5]} 4... c5 {[%clk 0:02:54.9]} 5. b3 {[%clk 0:02:55.2]}
5... d6 {[%clk 0:02:54.8]} 6. Bb2 {[%clk 0:02:54.3]} 6... e5 {[%clk 0:02:53.4]}
7. d3 {[%clk 0:02:49.8]} 7... Nbd7 {[%clk 0:02:52.4]} 8. c4 {[%clk 0:02:45]}
8... Be7 {[%clk 0:02:51.3]} 9. Nc3 {[%clk 0:02:44.9]} 9... O-O {[%clk
0:02:44.5]} 10. e3 {[%clk 0:02:44.9]} 10... Rb8 {[%clk 0:02:31]} 11. d4 {[%clk
0:02:43]} 11... a6 {[%clk 0:02:13.7]} 12. Qd2 {[%clk 0:02:30.8]} 12... Qc7
{[%clk 0:02:13.6]} 13. Rfd1 {[%clk 0:02:28.3]} 13... Rbd8 {[%clk 0:01:58.1]} 14.
Rac1 {[%clk 0:02:28.3]} 14... Qb8 {[%clk 0:01:57.8]} 15. Qc2 {[%clk 0:02:26.5]}
15... Qa8 {[%clk 0:01:56.6]} 16. Ne1 {[%clk 0:02:26.8]} 16... Bxg2 {[%clk
0:01:48]} 17. Nxg2 {[%clk 0:02:27.7]} 17... cxd4 {[%clk 0:01:48.3]} 18. exd4
{[%clk 0:02:28.6]} 18... exd4 {[%clk 0:01:48.5]} 19. Rxd4 {[%clk 0:02:29.5]}
19... Ne5 {[%clk 0:01:48.9]} 20. Ne1 {[%clk 0:02:24.3]} 20... d5 {[%clk
0:01:38.7]} 21. Nxd5 {[%clk 0:02:21.8]} 21... Nxd5 {[%clk 0:01:37.8]} 22. Rxd5
{[%clk 0:02:22.7]} 22... Rxd5 {[%clk 0:01:37.1]} 23. cxd5 {[%clk 0:02:23.6]}
23... Qxd5 {[%clk 0:01:35.5]} 24. Rd1 {[%clk 0:02:17.6]} 24... Nf3+ {[%clk
0:01:29.8]} 25. Nxf3 {[%clk 0:02:16.8]} 25... Qxf3 {[%clk 0:01:30.7]} 26. Qd3
{[%clk 0:02:14.3]} 26... Qg4 {[%clk 0:01:14.7]} 27. Qd4 {[%clk 0:02:06.6]} 27...
Qg6 {[%clk 0:01:13.7]} 28. Qd3 {[%clk 0:01:52.3]} 28... Qg4 {[%clk 0:01:05.4]}
29. Re1 {[%clk 0:01:37]} 29... Bc5 {[%clk 0:01:01.1]} 30. Qxa6 {[%clk
0:01:35.9]} 30... h5 {[%clk 0:00:57]} 31. Qe2 {[%clk 0:01:35.2]} 31... Qf5
{[%clk 0:00:54.3]} 32. Qe4 {[%clk 0:01:32.9]} 32... Qxf2+ {[%clk 0:00:49.9]} 33.
Kh1 {[%clk 0:01:33.2]} 33... Qxb2 {[%clk 0:00:49.7]} 0-1

[Event "Early-Titled-Tuesday-Blitz-September-05-2023"]
[Site "Chess.com"]
[Date "2023.09.05"]
[Round "6"]
[White "FoxOnTheRun97"]
[Black "ChampStan"]
[Result "1-0"]
[WhiteElo "2519"]
[BlackElo "2106"]
[TimeControl "180+1"]
[EndTime "9:04:05 PDT"]
[Termination "FoxOnTheRun97 won by resignation"]

1. d4 {[%clk 0:03:00.9]} 1... Nf6 {[%clk 0:02:57.2]} 2. c4 {[%clk 0:02:58.3]}
2... g6 {[%clk 0:02:55.2]} 3. Nc3 {[%clk 0:02:52.6]} 3... d5 {[%clk 0:02:47.6]}
4. cxd5 {[%clk 0:02:46.8]} 4... Nxd5 {[%clk 0:02:48.5]} 5. e4 {[%clk 0:02:44.7]}
5... Nxc3 {[%clk 0:02:47.5]} 6. bxc3 {[%clk 0:02:45.6]} 6... Bg7 {[%clk
0:02:47.5]} 7. h3 {[%clk 0:02:45.2]} 7... c5 {[%clk 0:02:47.5]} 8. Nf3 {[%clk
0:02:44.7]} 8... Nc6 {[%clk 0:02:46.5]} 9. Be3 {[%clk 0:02:35.5]} 9... O-O
{[%clk 0:02:42.9]} 10. Be2 {[%clk 0:02:30.6]} 10... Qa5 {[%clk 0:02:27.8]} 11.
O-O {[%clk 0:02:29]} 11... Qxc3 {[%clk 0:02:18]} 12. Rc1 {[%clk 0:02:27.5]}
12... Qa3 {[%clk 0:02:13.9]} 13. d5 {[%clk 0:02:14.1]} 13... Nd4 {[%clk
0:01:59.4]} 14. Nxd4 {[%clk 0:02:09.6]} 14... cxd4 {[%clk 0:01:56.6]} 15. Bxd4
{[%clk 0:02:10.2]} 15... Qxa2 {[%clk 0:01:52.7]} 16. Bxg7 {[%clk 0:02:04.6]}
16... Kxg7 {[%clk 0:01:50.9]} 17. Rc7 {[%clk 0:02:02.9]} 17... Qa3 {[%clk
0:01:45.7]} 18. Qd4+ {[%clk 0:01:51.7]} 18... Kg8 {[%clk 0:01:40.9]} 19. e5
{[%clk 0:01:43.3]} 19... Re8 {[%clk 0:01:18.6]} 20. Ra1 {[%clk 0:01:16.8]} 20...
Qb3 {[%clk 0:01:13.3]} 21. Bc4 {[%clk 0:00:44.5]} 21... Qb4 {[%clk 0:01:05.9]}
22. d6 {[%clk 0:00:41.8]} 22... exd6 {[%clk 0:01:02]} 23. Bxf7+ {[%clk
0:00:41.1]} 1-0